{"text_format":"1","workbook":"xlsx","n_sheets":3,"sheets":["Sheet1","Sheet2","Sheet3"],"not_rendered":{"charts":0,"images":0,"macros":0,"external_links":0,"defined_names":0,"comments":0,"pivot_tables":0},"unopened":[],"bounds":{"document_bytes":16777216,"sheet_cells":100000,"rows_first":2000,"rows_last":500,"rows_between":2000,"halvings":0,"cell_chars":16384,"cell_head_chars":4096},"cells_cut":0,"cells_raw":0,"read":"whole","date_system":"1900"}

{"sheet":"Sheet1","index":0,"n_rows":35,"n_cols":4,"rows_kept":35,"cut":false,"hidden":false,"merged":[[42,0,42,3],[0,0,0,3],[43,0,43,3],[31,0,31,3],[32,0,32,3],[33,0,33,3],[34,0,34,3],[37,0,37,3]]}
["Self-Evaluation Summary Sheet"]
["Reviews:"," # Satisfactory","# Possible","Percentage"]
["Card signed for",null,null,{"$f":"B3/C3","v":{"$error":"#DIV/0!"}}]
["Address",null,null,{"$error":"#DIV/0!"}]
["Flow sheet ",null,null,{"$error":"#DIV/0!"}]
["Mother ID on Infant/Child Record",null,null,{"$error":"#DIV/0!"}]
["ID Documentation",null,null,{"$error":"#DIV/0!"}]
["Residency Documentation",null,null,{"$error":"#DIV/0!"}]
["Income Determination",null,null,{"$error":"#DIV/0!"}]
["Income Documentation",null,null,{"$error":"#DIV/0!"}]
["Heights/Weights",null,null,{"$error":"#DIV/0!"}]
["Hemoglobin",null,null,{"$error":"#DIV/0!"}]
["Health History - Infant/Child ",null,null,{"$f":"B13/C13","v":{"$error":"#DIV/0!"}}]
["Health History - Women",null,null,{"$error":"#DIV/0!"}]
["Alcohol, Tobacco, and other Drug (ATOD)",null,null,{"$error":"#DIV/0!"}]
["Midcertifications (infants, children, BF Moms)",null,null,{"$f":"B16/C16","v":{"$error":"#DIV/0!"}}]
["Risks Identified  ",null,null,{"$error":"#DIV/0!"}]
["Documentation of Risks",null,null,{"$f":"B18/C18","v":{"$error":"#DIV/0!"}}]
["Appropriate Food Package",null,null,{"$f":"B19/C19","v":{"$error":"#DIV/0!"}}]
["High Risk/RD Nutrition Referral",null,null,{"$f":"B20/C20","v":{"$error":"#DIV/0!"}}]
["Appropriate Next Appointment",null,null,{"$f":"PRODUCT(B21/C21)","v":{"$error":"#DIV/0!"}}]
["Mandatory Topics",null,null,{"$f":"(B23+B24+B25+B26)/(C23+C24+C25+C26)","v":{"$error":"#DIV/0!"}}]
["Substance Abuse (All PG Moms and first certs)",null,null,{"$error":"#DIV/0!"}]
["Finger Foods                                                         (≥9 month infant receiving fresh FV benefits)",null,null,{"$error":"#DIV/0!"}]
["Exit counseling (PP and BF Moms)",null,null,{"$error":"#DIV/0!"}]
["Two BF educations (How To's & Benefits)",null,null,{"$error":"#DIV/0!"}]
["Nutrition Education"]
["N.E. Contacts (quarterly education)",null,null,{"$f":"B28/C28","v":{"$error":"#DIV/0!"}}]
["Appropriate Nutrition Education Topics",null,null,{"$f":"B29/C29","v":{"$error":"#DIV/0!"}}]
["N.E. Handouts Provided when Appropriate",null,null,{"$f":"B30/C30","v":{"$error":"#DIV/0!"}}]
["Appropriate Goals",null,null,{"$error":"#DIV/0!"}]
[]
["Rational for percentages less than 100:"]
[]
["Unsatisfactory (percentages less than 80):"]

{"sheet":"Sheet2","index":1,"n_rows":0,"n_cols":0,"rows_kept":0,"cut":false,"hidden":false,"merged":[]}

{"sheet":"Sheet3","index":2,"n_rows":0,"n_cols":0,"rows_kept":0,"cut":false,"hidden":false,"merged":[]}